[Event "EYTCC U18 Open 2019"]
[Site "Pardubice"]
[Date "2019.07.12"]
[Round "2.35"]
[White "Budisavljevic, Luka"]
[Black "Kosakowski, Jakub"]
[Result "0-1"]
[ECO "A46"]
[WhiteElo "2351"]
[BlackElo "2394"]
[Annotator "NA"]
[PlyCount "116"]
[EventDate "2019.07.11"]
[EventType "swiss"]
[EventCountry "CZE"]
[SourceTitle "playchess.com"]
[Source "ChessBase"]
[SourceQuality "1"]
[WhiteTeam "Serbia"]
[BlackTeam "Poland"]
[WhiteTeamCountry "SRB"]
[BlackTeamCountry "POL"]
[TimeControl "40/5400+30:1800+30"]

1. d4 {[%emt 0:00:00]} Nf6 {[%emt 0:00:00]} 2. Nf3 {[%emt 0:00:00]} e6 {[%emt 0:00:09]} 3. e3 {[%emt 0:00:58]} b6 {[%emt 0:00:14]} 4. Bd3 {[%emt 0:00:04]} Bb7 {[%emt 0:00:11]} 5. O-O {[%emt 0:00:08]} d5 {[%emt 0:00:12]} 6. c4 {[%emt 0:00:39]} Bd6 {[%emt 0:00:19]} 7. Nc3 {[%emt 0:00:17]} O-O {[%emt 0:00:31]} 8. b3 {[%emt 0:02:24]} Nbd7 {[%emt 0:00:15]} 9. Bb2 {[%emt 0:00:12]} a6 {[%emt 0:00:19]} 10. Rc1 {[%emt 0:00:56]} Qe7 {[%emt 0:01:14]} 11. cxd5 {[%emt 0:00:32]} exd5 {[%emt 0:00:26]} 12. Ne2 {[%emt 0:00:09]} Ne4 {[%emt 0:01:47]} 13. Bb1 {[%emt 0:03:11]} Rac8 {[%emt 0:04:34]} 14. Nf4 {[%emt 0:04:52]} Rfe8 {[%emt 0:05:10]} 15. Re1 {[%emt 0:04:55]} Ba3 {[%emt 0:08:09]} 16. Bxa3 {[%emt 0:17:41]} Qxa3 {[%emt 0:00:10]} 17. Nh4 {[%emt 0:04:22]} g6 {[%emt 0:06:39]} 18. Bxe4 {[%emt 0:10:20]} dxe4 {[%emt 0:02:48]} 19. Qg4 {[%emt 0:00:27]} Qe7 {[%emt 0:17:01]} 20. Nf5 {[%emt 0:01:20]} Qd8 {[%emt 0:00:11]} 21. Ng3 {[%emt 0:11:57]} c5 {[%emt 0:03:58]} 22. Nf5 {[%emt 0:16:24]} Nf6 {[%emt 0:11:38]} 23. Qg5 {[%emt 0:00:32]} Nd5 {[%emt 0:02:54]} 24. Nh6+ {[%emt 0:04:25]} Kg7 {[%emt 0:04:27]} 25. Nf5+ {[%emt 0:00:04]} Kg8 {[%emt 0:04:23]} 26. Nh6+ {[%emt 0:01:17]} Kf8 {[%emt 0:00:08]} 27. Qg3 {[%emt 0:06:16]} cxd4 {[%emt 0:00:42]} 28. exd4 {[%emt 0:00:48]} Rxc1 {[%emt 0:08:45]} 29. Rxc1 {[%emt 0:00:05]} e3 {[%emt 0:00:18]} 30. fxe3 {[%emt 0:04:41]} Rxe3 {[%emt 0:03:18]} 31. Qf2 {[%emt 0:00:36]} Qe7 {[%emt 0:11:29]} 32. Ng4 {[%emt 0:03:52]} Nxf4 {[%emt 0:01:37]} 33. Nxe3 {[%emt 0:00:12]} Nd3 {[%emt 0:00:52]} 34. Qd2 {[%emt 0:00:08]} Nxc1 {[%emt 0:00:05]} 35. Qxc1 {[%emt 0:00:01]} Qe4 {[%emt 0:01:41]} 36. Qd2 {[%emt 0:00:39]} b5 {[%emt 0:00:30]} 37. Nc2 {[%emt 0:02:14]} a5 {[%emt 0:00:28]} 38. Ne1 {[%emt 0:00:37]} Bd5 {[%emt 0:00:17]} 39. Nf3 {[%emt 0:00:31]} b4 {[%emt 0:00:28]} 40. Kf2 {[%emt 0:00:29]} Kg7 {[%emt 0:00:46]} 41. Qg5 {[%emt 0:08:16]} f6 {[%emt 0:06:25]} 42. Qc1 {[%emt 0:02:11]} g5 {[%emt 0:00:39]} 43. h3 {[%emt 0:06:05]} h5 {[%emt 0:00:12]} 44. Qd2 {[%emt 0:02:21]} Qf5 {[%emt 0:04:18]} 45. Kg1 {[%emt 0:08:22]} Bxf3 {[%emt 0:00:14]} 46. gxf3 {[%emt 0:00:01]} Qxf3 {[%emt 0:00:10]} 47. Qe1 {[%emt 0:00:31]} Kf7 {[%emt 0:00:12]} 48. Qb1 {[%emt 0:03:01]} Qg3+ {[%emt 0:00:10]} 49. Kf1 {[%emt 0:00:17]} Qxh3+ {[%emt 0:00:06]} 50. Kg1 {[%emt 0:00:29]} Qe3+ {[%emt 0:01:14]} 51. Kg2 {[%emt 0:00:26]} Kg7 {[%emt 0:00:34]} 52. Qd1 {[%emt 0:01:22]} g4 {[%emt 0:00:11]} 53. Qc2 {[%emt 0:01:08]} Qc3 {[%emt 0:00:13]} 54. Qb1 {[%emt 0:01:12]} h4 {[%emt 0:00:22]} 55. Kh2 {[%emt 0:01:45]} Qd2+ {[%emt 0:00:10]} 56. Kg1 {[%emt 0:00:11]} g3 {[%emt 0:00:05]} 57. Qf5 {[%emt 0:00:05]} Qh2+ {[%emt 0:00:09]} 58. Kf1 {[%emt 0:00:03]} g2+ {[%emt 0:00:06]} 0-1

[Event "EYTCC U18 Open 2019"]
[Site "Pardubice"]
[Date "2019.07.12"]
[Round "2.36"]
[White "Chylewski, Patryk"]
[Black "Omorjan, Dejan"]
[Result "1-0"]
[ECO "E70"]
[WhiteElo "2376"]
[BlackElo "2317"]
[Annotator "NA"]
[PlyCount "71"]
[EventDate "2019.07.11"]
[EventType "swiss"]
[EventCountry "CZE"]
[SourceTitle "playchess.com"]
[Source "ChessBase"]
[SourceQuality "1"]
[WhiteTeam "Poland"]
[BlackTeam "Serbia"]
[WhiteTeamCountry "POL"]
[BlackTeamCountry "SRB"]
[TimeControl "40/5400+30:1800+30"]

1. d4 {[%emt 0:00:00]} Nf6 {[%emt 0:00:00]} 2. c4 {[%emt 0:00:00]} g6 {[%emt 0:00:00]} 3. Nc3 {[%emt 0:00:00]} Bg7 {[%emt 0:00:00]} 4. e4 {[%emt 0:00:00]} d6 {[%emt 0:00:00]} 5. Bd3 {[%emt 0:00:05]} O-O {[%emt 0:00:24]} 6. Nge2 {[%emt 0:00:07]} e5 {[%emt 0:02:20]} 7. d5 {[%emt 0:00:14]} a5 {[%emt 0:01:14]} 8. O-O {[%emt 0:01:12]} Na6 {[%emt 0:00:35]} 9. f3 {[%emt 0:04:35]} Ne8 {[%emt 0:06:00]} 10. Be3 {[%emt 0:02:53]} f5 {[%emt 0:03:17]} 11. exf5 {[%emt 0:00:14]} gxf5 {[%emt 0:01:00]} 12. a3 {[%emt 0:14:13]} Bd7 {[%emt 0:04:30]} 13. Bc2 {[%emt 0:07:39]} Qh4 {[%emt 0:07:43]} 14. Bf2 {[%emt 0:10:59]} Qg5 {[%emt 0:04:55]} 15. Qe1 {[%emt 0:04:19]} Nf6 {[%emt 0:06:29]} 16. Rb1 {[%emt 0:03:00]} c6 {[%emt 0:15:01]} 17. dxc6 {[%emt 0:08:00]} bxc6 {[%emt 0:08:47]} 18. Rd1 {[%emt 0:02:54]} Ne8 {[%emt 0:03:56]} 19. f4 {[%emt 0:01:38]} Qe7 {[%emt 0:04:58]} 20. Bh4 {[%emt 0:02:13]} Bf6 {[%emt 0:04:22]} 21. Bxf6 {[%emt 0:03:50]} Rxf6 {[%emt 0:01:47]} 22. fxe5 {[%emt 0:01:58]} dxe5 {[%emt 0:01:07]} 23. Qh4 {[%emt 0:00:58]} Be6 {[%emt 0:08:53]} 24. Qg3+ {[%emt 0:04:20]} Rg6 {[%emt 0:04:30]} 25. Qxe5 {[%emt 0:01:17]} Qa7+ {[%emt 0:07:39]} 26. Kh1 {[%emt 0:01:37]} Ng7 {[%emt 0:00:47]} 27. Ng3 {[%emt 0:05:27]} Bxc4 {[%emt 0:01:16]} 28. Nxf5 {[%emt 0:09:05]} Bxf1 {[%emt 0:00:52]} 29. Rxf1 {[%emt 0:00:22]} Re8 {[%emt 0:01:17]} 30. Bb3+ {[%emt 0:01:26]} Kh8 {[%emt 0:00:33]} 31. Nd6 {[%emt 0:05:27]} Rxd6 {[%emt 0:00:39]} 32. Qxd6 {[%emt 0:00:07]} Qf2 {[%emt 0:00:32]} 33. Bc4 {[%emt 0:01:42]} Qc5 {[%emt 0:00:23]} 34. Qd3 {[%emt 0:01:07]} Nc7 {[%emt 0:00:19]} 35. Ne4 {[%emt 0:00:18]} Qe5 {[%emt 0:00:53]} 36. Nf6 {[%emt 0:00:20]} 1-0

[Event "EYTCC U18 Open 2019"]
[Site "Pardubice"]
[Date "2019.07.13"]
[Round "3.1"]
[White "Ozsakallioglu, Okan"]
[Black "Van Foreest, Lucas"]
[Result "0-1"]
[ECO "A48"]
[WhiteElo "2243"]
[BlackElo "2521"]
[Annotator "ChessBase"]
[PlyCount "103"]
[EventDate "2019.07.11"]
[EventType "swiss"]
[EventCountry "CZE"]
[SourceTitle "playchess.com"]
[Source "ChessBase"]
[SourceQuality "1"]
[WhiteTeam "Turkey"]
[BlackTeam "Netherlands"]
[WhiteTeamCountry "TUR"]
[BlackTeamCountry "NED"]
[TimeControl "40/5400+30:1800+30"]

1. Nf3 {[%emt 0:00:00]} Nf6 {[%emt 0:00:00]} 2. d4 {[%emt 0:00:37]} g6 {[%emt 0:00:09]} 3. c4 {[%emt 0:00:15]} Bg7 {[%emt 0:00:07]} 4. g3 {[%emt 0:00:17]} O-O {[%emt 0:00:10]} 5. Bg2 {[%emt 0:00:03]} d6 {[%emt 0:00:05]} 6. O-O {[%emt 0:00:15]} Bf5 {[%emt 0:00:15]} 7. h3 {[%emt 0:06:30]} Nc6 {[%emt 0:08:17]} 8. g4 {[%emt 0:03:34]} Bd7 {[%emt 0:00:56]} 9. Nc3 {[%emt 0:00:27]} e5 {[%emt 0:09:16]} 10. d5 {[%emt 0:08:48]} Ne7 {[%emt 0:02:20]} 11. e4 {[%emt 0:00:18]} Ne8 {[%emt 0:06:20]} 12. Qc2 {[%emt 0:05:26]} Qc8 {[%emt 0:03:50]} 13. Kh2 {[%emt 0:11:38]} f5 {[%emt 0:01:20]} 14. exf5 {[%emt 0:03:19]} gxf5 {[%emt 0:00:09]} 15. gxf5 {[%emt 0:04:42]} Nxf5 {[%emt 0:05:39]} 16. Ne4 {[%emt 0:07:05]} Nf6 {[%emt 0:00:19]} 17. Nfg5 {[%emt 0:01:09]} Nh5 {[%emt 0:00:20]} 18. Ng3 {[%emt 0:01:12]} Nf4 {[%emt 0:05:21]} 19. Bxf4 {[%emt 0:04:46]} exf4 {[%emt 0:00:09]} 20. Nxf5 {[%emt 0:00:21]} Bxf5 {[%emt 0:08:03]} 21. Be4 {[%emt 0:00:11]} f3 {[%emt 0:01:26]} 22. Rg1 {[%emt 0:06:26]} Kh8 {[%emt 0:04:26]} 23. Nxf3 {[%emt 0:03:18]} Bxe4 {[%emt 0:02:26]} 24. Qxe4 {[%emt 0:00:32]} Qf5 {[%emt 0:00:25]} 25. Qxf5 {[%emt 0:03:36]} Rxf5 {[%emt 0:00:05]} 26. Rg3 {[%emt 0:00:27]} Raf8 {[%emt 0:00:46]} 27. Kg2 {[%emt 0:01:19]} Be5 {[%emt 0:04:56]} 28. Nxe5 {[%emt 0:00:06]} Rxf2+ {[%emt 0:00:04]} 29. Kg1 {[%emt 0:00:43]} dxe5 {[%emt 0:00:08]} 30. Re1 {[%emt 0:01:32]} Rxb2 {[%emt 0:02:52]} 31. Rxe5 {[%emt 0:00:37]} Rc2 {[%emt 0:03:26]} 32. Rg4 {[%emt 0:00:09]} Rg8 {[%emt 0:00:35]} 33. Rxg8+ {[%emt 0:03:54]} Kxg8 {[%emt 0:00:05]} 34. Re8+ {[%emt 0:00:16]} Kf7 {[%emt 0:00:05]} 35. Ra8 {[%emt 0:00:03]} Rxc4 {[%emt 0:00:41]} 36. Rxa7 {[%emt 0:00:03]} Rb4 {[%emt 0:00:06]} 37. a4 {[%emt 0:00:36]} Ke7 {[%emt 0:03:35]} 38. a5 {[%emt 0:00:05]} Kd6 {[%emt 0:02:41]} 39. a6 {[%emt 0:00:04]} bxa6 {[%emt 0:00:06]} 40. Rxa6+ {[%emt 0:00:04]} Rb6 {[%emt 0:01:42]} 41. Ra5 {[%emt 0:30:04]} Rb2 {[%emt 0:30:12]} 42. Kf1 {[%emt 0:05:45]} h5 {[%emt 0:01:46]} 43. Ra6+ {[%emt 0:00:12]} Kxd5 {[%emt 0:11:26]} 44. Rh6 {[%emt 0:00:08]} c5 {[%emt 0:00:06]} 45. Ke1 {[%emt 0:16:25]} Kd4 {[%emt 0:01:29]} 46. Rxh5 {[%emt 0:00:11]} c4 {[%emt 0:00:11]} 47. Rh8 {[%emt 0:05:31]} Kd3 {[%emt 0:08:02]} 48. Rd8+ {[%emt 0:00:00]} Kc2 {[%emt 0:00:00]} 49. h4 {[%emt 0:00:00]} Rb5 {[%emt 0:00:00]} 50. Rd2+ {[%emt 0:00:00]} Kb3 {[%emt 0:00:00]} 51. Rh2 {[%emt 0:00:00]} c3 {[%emt 0:00:00]} 52. Rd2 {Kb2} 0-1

[Event "EYTCC U18 Open 2019"]
[Site "Pardubice"]
[Date "2019.07.13"]
[Round "3.2"]
[White "Schoppen, Casper"]
[Black "Ozsakallioglu, Akin"]
[Result "1-0"]
[ECO "E71"]
[WhiteElo "2493"]
[BlackElo "1901"]
[Annotator "ChessBase"]
[PlyCount "65"]
[EventDate "2019.07.11"]
[EventType "swiss"]
[EventCountry "CZE"]
[SourceTitle "playchess.com"]
[Source "ChessBase"]
[SourceQuality "1"]
[WhiteTeam "Netherlands"]
[BlackTeam "Turkey"]
[WhiteTeamCountry "NED"]
[BlackTeamCountry "TUR"]
[TimeControl "40/5400+30:1800+30"]

1. d4 {[%emt 0:00:00]} Nf6 {[%emt 0:00:00]} 2. c4 {[%emt 0:00:00]} g6 {[%emt 0:00:00]} 3. Nc3 {[%emt 0:00:00]} Bg7 {[%emt 0:00:14]} 4. e4 {[%emt 0:00:00]} d6 {[%emt 0:05:48]} 5. h3 {[%emt 0:00:01]} O-O {[%emt 0:02:05]} 6. Be3 {[%emt 0:00:04]} c5 {[%emt 0:00:50]} 7. d5 {[%emt 0:00:54]} e6 {[%emt 0:00:58]} 8. Nf3 {[%emt 0:00:14]} exd5 {[%emt 0:01:22]} 9. exd5 {[%emt 0:00:06]} Bf5 {[%emt 0:02:30]} 10. Bd3 {[%emt 0:02:23]} Bxd3 {[%emt 0:03:12]} 11. Qxd3 {[%emt 0:00:06]} Na6 {[%emt 0:00:21]} 12. O-O {[%emt 0:00:23]} Re8 {[%emt 0:04:22]} 13. a3 {[%emt 0:21:09]} Qd7 {[%emt 0:04:26]} 14. Rfe1 {[%emt 0:01:04]} Nc7 {[%emt 0:00:53]} 15. Rab1 {[%emt 0:04:17]} Rab8 {[%emt 0:02:21]} 16. b4 {[%emt 0:01:33]} b5 {[%emt 0:24:03]} 17. bxc5 {[%emt 0:03:57]} bxc4 {[%emt 0:04:49]} 18. Qxc4 {[%emt 0:10:54]} dxc5 {[%emt 0:01:58]} 19. Rxb8 {[%emt 0:04:07]} Rxb8 {[%emt 0:00:05]} 20. Ne5 {[%emt 0:00:41]} Qe8 {[%emt 0:06:23]} 21. Nc6 {[%emt 0:01:11]} Ra8 {[%emt 0:05:25]} 22. Bd2 {[%emt 0:03:55]} Qd7 {[%emt 0:01:34]} 23. Re7 {[%emt 0:00:16]} Qc8 {[%emt 0:00:33]} 24. Ne5 {[%emt 0:04:13]} Nce8 {[%emt 0:06:08]} 25. Nxf7 {[%emt 0:01:34]} Bf8 {[%emt 0:00:42]} 26. Nh6+ {[%emt 0:01:18]} Kh8 {[%emt 0:01:46]} 27. Re6 {[%emt 0:00:36]} Qd7 {[%emt 0:01:15]} 28. Qe2 {[%emt 0:01:16]} Rb8 {[%emt 0:02:57]} 29. Qe5 {[%emt 0:00:25]} Rb6 {[%emt 0:00:05]} 30. Bg5 {[%emt 0:01:58]} Rxe6 {[%emt 0:00:47]} 31. dxe6 {[%emt 0:00:08]} Qg7 {[%emt 0:01:28]} 32. Nf7+ {[%emt 0:00:19]} Kg8 {[%emt 0:00:11]} 33. Bh6 {[%emt 0:00:13]} 1-0

[Event "EYTCC U18 Open 2019"]
[Site "Pardubice"]
[Date "2019.07.13"]
[Round "3.3"]
[White "Ozdemir, Serhan Berat"]
[Black "Vrolijk, Liam"]
[Result "0-1"]
[ECO "C55"]
[WhiteElo "1985"]
[BlackElo "2478"]
[Annotator "ChessBase"]
[PlyCount "154"]
[EventDate "2019.07.11"]
[EventType "swiss"]
[EventCountry "CZE"]
[SourceTitle "playchess.com"]
[Source "ChessBase"]
[SourceQuality "1"]
[WhiteTeam "Turkey"]
[BlackTeam "Netherlands"]
[WhiteTeamCountry "TUR"]
[BlackTeamCountry "NED"]
[TimeControl "40/5400+30:1800+30"]

1. e4 {[%emt 0:00:00]} e5 {[%emt 0:00:00]} 2. Nf3 {[%emt 0:00:00]} Nc6 {[%emt 0:00:00]} 3. d4 {[%emt 0:00:01]} exd4 {[%emt 0:00:00]} 4. Bc4 {[%emt 0:00:25]} Nf6 {[%emt 0:00:48]} 5. e5 {[%emt 0:00:05]} d5 {[%emt 0:00:22]} 6. Bb5 {[%emt 0:00:05]} Nd7 {[%emt 0:00:14]} 7. O-O {[%emt 0:00:32]} Be7 {[%emt 0:00:39]} 8. Re1 {[%emt 0:00:26]} O-O {[%emt 0:01:53]} 9. Bxc6 {[%emt 0:01:22]} bxc6 {[%emt 0:00:18]} 10. Nxd4 {[%emt 0:00:06]} Nb8 {[%emt 0:01:09]} 11. Nc3 {[%emt 0:11:33]} a5 {[%emt 0:03:15]} 12. Qf3 {[%emt 0:06:09]} Qd7 {[%emt 0:03:03]} 13. Bf4 {[%emt 0:03:33]} Qg4 {[%emt 0:04:37]} 14. Qxg4 {[%emt 0:04:29]} Bxg4 {[%emt 0:00:07]} 15. h3 {[%emt 0:00:56]} Be6 {[%emt 0:02:14]} 16. g4 {[%emt 0:06:44]} g6 {[%emt 0:03:05]} 17. Rad1 {[%emt 0:04:27]} c5 {[%emt 0:05:10]} 18. Nf3 {[%emt 0:01:59]} Rd8 {[%emt 0:04:41]} 19. Bg5 {[%emt 0:02:37]} Bxg5 {[%emt 0:02:35]} 20. Nxg5 {[%emt 0:00:02]} Na6 {[%emt 0:01:15]} 21. f4 {[%emt 0:04:02]} Nb4 {[%emt 0:04:06]} 22. Rd2 {[%emt 0:00:55]} h6 {[%emt 0:01:02]} 23. Nxe6 {[%emt 0:00:53]} fxe6 {[%emt 0:00:07]} 24. a3 {[%emt 0:00:47]} Nc6 {[%emt 0:00:22]} 25. Nb5 {[%emt 0:03:16]} Rd7 {[%emt 0:03:56]} 26. Kh2 {[%emt 0:06:40]} Rf8 {[%emt 0:08:34]} 27. Kg3 {[%emt 0:01:56]} Rdf7 {[%emt 0:05:10]} 28. Rf2 {[%emt 0:00:27]} g5 {[%emt 0:02:00]} 29. f5 {[%emt 0:00:55]} exf5 {[%emt 0:00:07]} 30. gxf5 {[%emt 0:00:26]} Rxf5 {[%emt 0:00:21]} 31. Rxf5 {[%emt 0:00:04]} Rxf5 {[%emt 0:00:07]} 32. Nxc7 {[%emt 0:01:54]} Ne7 {[%emt 0:01:57]} 33. Ne6 {[%emt 0:06:41]} c4 {[%emt 0:00:21]} 34. Nd4 {[%emt 0:02:24]} Rf4 {[%emt 0:00:09]} 35. c3 {[%emt 0:06:20]} Kf7 {[%emt 0:01:18]} 36. Re2 {[%emt 0:03:00]} Kg6 {[%emt 0:01:16]} 37. a4 {[%emt 0:03:00]} h5 {[%emt 0:02:48]} 38. Kg2 {[%emt 0:04:25]} Kf7 {[%emt 0:02:15]} 39. Nf3 {[%emt 0:05:07]} g4 {[%emt 0:05:26]} 40. hxg4 {[%emt 0:01:21]} Rxg4+ {[%emt 0:00:36]} 41. Kf2 {[%emt 0:30:39]} Ng6 {[%emt 0:41:39]} 42. Nd4 {[%emt 0:06:43]} h4 {[%emt 0:00:59]} 43. Nc6 {[%emt 0:00:00]} Rg5 {[%emt 0:00:00]} 44. e6+ {[%emt 0:00:00]} Ke8 {[%emt 0:00:00]} 45. Re3 {[%emt 0:00:00]} Nf4 {[%emt 0:00:00]} 46. Rf3 {[%emt 0:00:00]} Nxe6 {[%emt 0:00:00]} 47. Nxa5 {[%emt 0:00:00]} Nc5 {[%emt 0:00:00]} 48. Rh3 {[%emt 0:00:00]} Rh5 {[%emt 0:00:00]} 49. Kf3 {[%emt 0:02:04]} Rh6 {[%emt 0:00:00]} 50. Ke3 {[%emt 0:02:17]} Ra6 {[%emt 0:00:00]} 51. Nxc4 {[%emt 0:03:05]} dxc4 {[%emt 0:00:00]} 52. Rxh4 {[%emt 0:00:03]} Rxa4 {[%emt 0:00:00]} 53. Kd4 {[%emt 0:00:48]} Nb3+ {[%emt 0:00:00]} 54. Kd5 {[%emt 0:00:08]} Ra5+ {[%emt 0:00:00]} 55. Ke6 {[%emt 0:00:27]} Ra6+ {[%emt 0:00:00]} 56. Kd5 {[%emt 0:00:09]} Nd2 {[%emt 0:00:00]} 57. Rh2 {[%emt 0:00:58]} Kd7 {[%emt 0:00:00]} 58. Rh7+ {[%emt 0:00:44]} Kc8 {[%emt 0:00:00]} 59. Rh2 {[%emt 0:00:08]} Kc7 {[%emt 0:00:00]} 60. Kc5 {[%emt 0:01:10]} Rc6+ {[%emt 0:00:00]} 61. Kb5 {[%emt 0:00:27]} Rb6+ {[%emt 0:00:00]} 62. Kc5 {[%emt 0:00:33]} Rxb2 {[%emt 0:00:00]} 63. Rh7+ {[%emt 0:00:04]} Kd8 {[%emt 0:00:00]} 64. Rg7 {[%emt 0:00:20]} Ra2 {[%emt 0:00:00]} 65. Kb4 {[%emt 0:00:44]} Ra6 {[%emt 0:00:00]} 66. Rg2 {[%emt 0:00:53]} Rd6 {[%emt 0:00:00]} 67. Rg4 {[%emt 0:00:03]} Ke7 {[%emt 0:00:00]} 68. Kc5 {[%emt 0:00:55]} Rd8 {[%emt 0:00:00]} 69. Rg2 {[%emt 0:00:26]} Kf6 {[%emt 0:00:14]} 70. Re2 {[%emt 0:00:36]} Kf5 {[%emt 0:00:15]} 71. Kb4 {[%emt 0:00:23]} Rd3 {[%emt 0:00:22]} 72. Re8 {[%emt 0:00:32]} Kf4 {[%emt 0:00:12]} 73. Re7 {[%emt 0:00:12]} Kf3 {[%emt 0:00:05]} 74. Re1 {[%emt 0:00:30]} Re3 {[%emt 0:00:21]} 75. Rg1 {[%emt 0:00:30]} Ke2 {[%emt 0:00:17]} 76. Rh1 {[%emt 0:00:43]} Kd3 {[%emt 0:00:11]} 77. Rc1 {[%emt 0:00:16]} Re7 {[%emt 0:00:07]} 0-1

[Event "EYTCC U18 Open 2019"]
[Site "Pardubice"]
[Date "2019.07.13"]
[Round "3.4"]
[White "Van Dael, Siem"]
[Black "Buke, Furkan"]
[Result "1-0"]
[ECO "B32"]
[WhiteElo "2319"]
[BlackElo "1959"]
[Annotator "NA"]
[PlyCount "63"]
[EventDate "2019.07.11"]
[EventType "swiss"]
[EventCountry "CZE"]
[SourceTitle "playchess.com"]
[Source "ChessBase"]
[SourceQuality "1"]
[WhiteTeam "Netherlands"]
[BlackTeam "Turkey"]
[WhiteTeamCountry "NED"]
[BlackTeamCountry "TUR"]
[TimeControl "40/5400+30:1800+30"]

1. e4 {[%emt 0:00:00]} c5 {[%emt 0:00:00]} 2. Nf3 {[%emt 0:00:00]} Nc6 {[%emt 0:00:00]} 3. d4 {[%emt 0:00:00]} cxd4 {[%emt 0:00:00]} 4. Nxd4 {[%emt 0:00:00]} Qb6 {[%emt 0:00:10]} 5. Nb3 {[%emt 0:00:56]} Nf6 {[%emt 0:00:19]} 6. Nc3 {[%emt 0:00:35]} e6 {[%emt 0:00:40]} 7. a3 {[%emt 0:01:19]} Be7 {[%emt 0:00:59]} 8. Be2 {[%emt 0:02:16]} a6 {[%emt 0:01:15]} 9. O-O {[%emt 0:00:26]} O-O {[%emt 0:01:49]} 10. Be3 {[%emt 0:03:25]} Qc7 {[%emt 0:00:09]} 11. f4 {[%emt 0:00:56]} d6 {[%emt 0:00:48]} 12. Qe1 {[%emt 0:02:48]} b5 {[%emt 0:01:51]} 13. Bf3 {[%emt 0:01:51]} Bb7 {[%emt 0:01:32]} 14. Qg3 {[%emt 0:01:09]} Nd7 {[%emt 0:15:18]} 15. Rad1 {[%emt 0:06:48]} Nb6 {[%emt 0:07:55]} 16. Kh1 {[%emt 0:02:26]} Nc4 {[%emt 0:00:45]} 17. Bc1 {[%emt 0:00:16]} Rfe8 {[%emt 0:02:14]} 18. Bh5 {[%emt 0:05:45]} Bf8 {[%emt 0:11:57]} 19. f5 {[%emt 0:02:20]} N6e5 {[%emt 0:03:39]} 20. fxe6 {[%emt 0:03:21]} Rxe6 {[%emt 0:04:40]} 21. Nd4 {[%emt 0:01:09]} Ree8 {[%emt 0:00:14]} 22. b3 {[%emt 0:01:08]} Nb6 {[%emt 0:01:21]} 23. Nf5 {[%emt 0:05:24]} Kh8 {[%emt 0:02:23]} 24. Bg5 {[%emt 0:06:40]} Rac8 {[%emt 0:03:44]} 25. Nd5 {[%emt 0:02:31]} Bxd5 {[%emt 0:04:49]} 26. exd5 {[%emt 0:00:08]} Qxc2 {[%emt 0:05:04]} 27. Nh6 {[%emt 0:06:37]} Rc3 {[%emt 0:10:48]} 28. Nxf7+ {[%emt 0:01:07]} Nxf7 {[%emt 0:00:52]} 29. Qf4 {[%emt 0:00:05]} Rcc8 {[%emt 0:02:13]} 30. Qxf7 {[%emt 0:02:58]} Qxb3 {[%emt 0:02:08]} 31. Bg4 {[%emt 0:01:52]} Qc4 {[%emt 0:03:18]} 32. Be6 {[%emt 0:00:27]} 1-0